bitfinex/quotes_ETHUSD_20220119
["timestamp","ask_amount","ask_price","bid_price","bid_amount"]
[1642578720538,0.8180597,3056.8,3056.3,0.00113685]
[1642578720761,1.1180597,3056.8,3056.2,0.00170527]
[1642578720963,0.00113685,3056.7,3056.2,0.00170527]
[1642578721962,0.3,3056.6,3056.2,0.00170527]
[1642578722165,0.00113685,3056.7,3056.2,0.00170527]
[1642578724612,0.81928685,3056.7,3056.2,0.00170527]
[1642578724812,2.30086563,3056.6,3056.2,0.00170527]
[1642578725217,4.93727673,3056.6,3056.2,0.00170527]
[1642578725416,4.97236777,3056.6,3056.2,0.00170527]
[1642578725614,7.36208,3056.5,3056.2,0.00170527]
[1642578725814,2.97601642,3056.4,3056.2,0.00170527]
[1642578726016,6.5,3056.2,3056.1,2.0]
[1642578726213,9.46690989,3056.2,3056.1,2.0]
[1642578726417,10.76690989,3056.2,3056.1,2.0]
[1642578726615,0.81845,3056.1,3055.2,1.2423]
[1642578726817,2.25646568,3056.0,3055.4,2.78222676]
[1642578727012,3.07490928,3056.0,3055.4,2.78677415]
[1642578727215,0.8184436,3056.0,3055.5,2.78222676]
[1642578727418,11.0042,3056.2,3055.5,2.78222676]
[1642578727618,11.0042,3056.2,3055.6,1.43474165]
[1642578727819,10.8322,3056.2,3055.7,2.78222676]
[1642578728020,10.5322,3056.2,3056.1,5.33559676]
[1642578728286,6.5437,3056.2,3056.1,8.11782352]
[1642578729090,6.5437,3056.2,3056.1,11.43844324]
[1642578729091,0.60964354,3056.2,3056.1,11.43844324]
[1642578729285,0.37564354,3056.2,3056.1,11.45046171]
[1642578729683,0.37564354,3056.2,3056.1,8.36372171]
[1642578729883,0.37564354,3056.2,3056.1,8.66372171]
[1642578729884,4.354e-05,3056.2,3056.1,8.66372171]
[1642578730083,4.354e-05,3056.2,3056.1,9.58653403]
[1642578730284,4.354e-05,3056.2,3056.1,10.17253403]
[1642578730586,0.52615039,3057.3,3056.3,0.586]
[1642578730884,0.52615039,3057.3,3056.5,0.586]
[1642578730885,0.00113684,3056.6,3056.5,0.586]
[1642578731085,0.00113684,3056.6,3056.5,3.36822676]
[1642578731588,0.00113684,3056.6,3056.5,7.90592473]
[1642578731913,0.8180126,3057.1,3056.9,0.00227368]
[1642578732316,0.8180126,3057.1,3056.9,0.58827368]
[1642578732515,0.8180126,3057.1,3057.0,0.586]
[1642578732913,0.82085472,3057.1,3057.0,0.586]
[1642578733115,0.00284212,3057.1,3057.0,0.586]
[1642578734415,0.00284212,3057.1,3057.0,3.36720595]
[1642578734615,0.00284212,3057.1,3057.0,0.586]
[1642578734817,0.00284212,3057.1,3057.0,3.36720595]
[1642578735860,0.85959091,3057.2,3057.0,3.36720595]
[1642578736060,0.85959091,3057.2,3057.1,3.36720595]
[1642578736262,0.85959091,3057.2,3057.1,0.586]
[1642578736663,0.85959091,3057.2,3057.1,3.36718162]
[1642578737064,0.04158761,3057.2,3057.1,3.36718162]
[1642578738066,0.04158761,3057.2,3057.1,5.95753122]
[1642578738267,0.04158761,3057.2,3057.1,3.36718162]
[1642578738465,0.04158761,3057.2,3057.1,4.28274162]
[1642578738865,8.761e-05,3057.2,3057.1,4.28274162]
[1642578739165,3.8737,3058.1,3057.3,0.00071239]
[1642578739424,1.0,3058.0,3057.3,0.58671239]
[1642578739610,1.70716053,3057.9,3057.5,0.586]
[1642578739809,6.5409,3057.8,3057.5,0.586]
[1642578740009,6.84487896,3057.8,3057.6,3.36688549]
[1642578740210,1.00341054,3057.7,3057.6,0.586]
[1642578740409,7.54431054,3057.7,3057.6,0.586]
[1642578740816,7.54431054,3057.7,3057.6,3.36688014]
[1642578741015,7.24211054,3057.7,3057.6,3.36688014]
[1642578741418,6.54431054,3057.7,3057.6,3.36688014]
[1642578743764,7.54431054,3057.7,3057.6,3.36688014]
[1642578743965,0.82478639,3057.5,3057.3,0.00071239]
[1642578744165,13.2629,3057.4,3057.3,0.00071239]
[1642578744366,13.56460527,3057.4,3057.3,0.00071239]
[1642578744567,15.38271527,3057.4,3057.3,0.00071239]
[1642578744764,17.26824787,3057.4,3057.3,0.00071239]
[1642578744964,17.56824787,3057.4,3057.3,0.00071239]
[1642578745164,7.9682261,3057.3,3056.9,0.00227368]
[1642578745365,7.0129,3057.2,3056.9,0.00227368]
[1642578745563,2.63646,3057.1,3056.9,0.00227368]
[1642578745768,12.15913,3057.0,3056.9,2.78352415]
[1642578745969,12.45913,3057.0,3056.9,0.00227368]
[1642578746171,13.79442,3057.0,3056.9,0.00341053]
[1642578746566,13.79442,3057.0,3056.0,1.64698779]
[1642578746567,7.15,3056.9,3056.4,2.78125047]
[1642578746767,7.831203,3056.8,3056.5,2.78125047]
[1642578747009,1.0,3056.7,3056.6,2.78125047]
[1642578747215,8.0129,3056.7,3056.6,2.78125047]
[1642578747412,8.17619,3056.7,3056.6,2.78125047]
[1642578747610,8.17619,3056.7,3056.5,0.00227369]
[1642578747611,8.0129,3056.7,3056.5,0.00227369]
[1642578747810,10.4677946,3056.7,3056.5,0.00227369]
[1642578748010,1.6365521,3056.6,3056.2,2.78125047]
[1642578748214,7.35918,3056.5,3056.2,2.78522943]
[1642578748414,7.35918,3056.5,3056.3,2.78466101]
[1642578748614,1.0,3056.4,3056.3,0.00341054]
[1642578748815,0.81828,3056.5,3056.4,2.00284211]
[1642578749014,2.45497,3056.5,3056.4,2.0]
[1642578749215,2.45497,3056.5,3056.4,2.00284211]
[1642578749216,10.6350378,3056.5,3056.4,2.00284211]
[1642578750116,11.14327307,3056.5,3056.4,2.00284211]
[1642578750318,8.6520678,3056.5,3056.4,2.00284211]
[1642578750518,6.5435,3056.5,3056.4,2.00284211]
[1642578751364,6.2431,3056.5,3056.4,2.00284211]
[1642578753866,7.06132,3056.5,3056.4,2.00284211]
[1642578754270,1.63693,3056.3,3055.8,1.64698779]
[1642578754523,9.05631791,3056.2,3055.5,1.64698779]
[1642578754720,9.05631791,3056.2,3055.5,0.64698779]
[1642578754721,7.15,3056.1,3055.5,0.64698779]
[1642578754926,6.2431,3056.0,3055.6,0.00170527]
[1642578755316,6.2431,3056.0,3055.2,2.49673392]
[1642578755518,1.63711,3055.9,3055.2,0.00397897]
[1642578755721,1.63711,3055.9,3055.3,0.00341054]
[1642578755722,7.0616721,3055.8,3055.3,0.00341054]
[1642578755923,8.38776716,3055.8,3055.2,0.00397897]
[1642578756123,7.56920716,3055.8,3055.2,0.00397897]
[1642578756526,7.27120716,3055.8,3055.1,0.00454739]
[1642578756723,0.81856,3055.7,3055.1,0.00454739]
[1642578756921,7.880236,3055.6,3055.1,0.00454739]
[1642578757123,7.880236,3055.6,3055.2,2.49275495]
[1642578757124,6.2431,3055.6,3055.2,2.49275495]
[1642578757323,6.2431,3055.6,3055.3,2.49275495]
[1642578757525,6.2431,3055.6,3055.3,2.49616549]
[1642578757722,6.2431,3055.6,3055.4,0.00284212]
[1642578758025,6.2431,3055.6,3055.4,2.49559707]
[1642578758262,6.2431,3055.6,3055.5,6.09275495]
[1642578758461,6.2431,3055.6,3055.5,0.0022737]
[1642578760765,7.06153,3055.6,3055.4,0.00284212]
[1642578761366,7.06153,3055.6,3055.3,0.00341054]
[1642578761568,0.81853,3055.5,3055.3,0.00341054]
[1642578761921,6.2431,3055.4,3055.3,0.00341054]
[1642578762315,6.2431,3055.4,3055.2,0.00397897]
[1642578762721,6.2431,3055.4,3055.2,2.49673392]
[1642578762917,6.2431,3055.4,3055.2,0.00397897]
[1642578763117,6.2431,3055.4,3055.3,0.00341054]
[1642578763317,6.2431,3055.4,3055.2,0.00397897]
[1642578763717,1.79177782,3055.4,3055.3,2.78211447]
[1642578764122,0.04608119,3055.6,3055.4,7.15]
[1642578764321,0.04608119,3055.6,3055.5,2.78211447]
[1642578764519,0.04608119,3055.6,3055.5,5.74040312]
[1642578765120,8.119e-05,3055.6,3055.5,5.74040312]
[1642578765324,0.04607527,3055.8,3055.6,0.0008]
[1642578765325,7.527e-05,3055.8,3055.6,0.0008]
[1642578765521,7.527e-05,3055.8,3055.7,2.48463918]
[1642578765762,7.527e-05,3055.8,3055.7,5.2678905]
[1642578766163,7.527e-05,3055.8,3055.7,5.13376213]
[1642578766361,7.527e-05,3055.8,3055.7,7.61840131]
[1642578766564,3.39931212,3056.4,3056.0,1.21345805]
[1642578766863,0.00113684,3056.3,3056.1,2.78211447]
[1642578767062,0.00113684,3056.3,3056.2,5.58211447]
[1642578767266,6.544,3056.3,3056.2,5.58211447]
[1642578767462,6.544,3056.3,3056.2,2.78211447]
[1642578767662,6.544,3056.3,3056.1,2.78211447]
[1642578768062,6.544,3056.3,3056.2,5.63211447]
[1642578768262,6.544,3056.3,3056.2,2.78211447]
[1642578769424,6.544,3056.3,3056.2,2.78152641]
[1642578770213,6.544,3056.3,3056.1,2.78152641]
[1642578771620,6.2504,3056.3,3056.1,2.78152641]
[1642578772619,6.2504,3056.3,3056.2,2.78152641]
[1642578772819,6.2504,3056.3,3055.9,2.78152641]
[1642578773023,6.2504,3056.3,3055.9,0.3]
[1642578773261,6.2504,3056.3,3056.0,2.78152641]
[1642578776066,6.2504,3056.3,3056.1,2.78152641]
[1642578776266,6.2504,3056.3,3056.2,2.78152641]
[1642578776466,6.2504,3056.3,3055.7,1.65882688]
[1642578776467,6.2504,3056.3,3055.7,4.44035329]
[1642578776667,5.9599,3056.3,3055.7,4.44035329]
[1642578776915,5.9599,3056.3,3055.8,0.00170528]
[1642578777108,5.9599,3056.3,3055.8,1.65825846]
[1642578777510,5.9599,3056.3,3055.9,0.00113685]
[1642578778313,5.9599,3056.3,3055.8,1.65825846]
[1642578778509,5.9599,3056.3,3055.9,0.00113685]
[1642578778910,5.9599,3056.3,3055.9,2.78266326]
[1642578779110,5.9599,3056.3,3056.0,2.78152641]
[1642578779311,5.9599,3056.3,3055.9,0.00113685]
[1642578779712,5.9599,3056.3,3056.1,2.78152641]
[1642578779911,5.9599,3056.3,3055.9,0.30113685]
[1642578780111,5.9599,3056.3,3056.0,2.78152641]
[1642578780312,5.9599,3056.3,3055.9,4.73921644]
[1642578780512,5.9599,3056.3,3056.0,2.78152641]
[1642578780764,5.9599,3056.3,3056.0,4.43807959]
[1642578780973,5.9599,3056.3,3056.2,7.36326]
[1642578781168,5.9599,3056.3,3056.2,9.95238341]
[1642578781369,5.9599,3056.3,3056.2,13.37579668]
[1642578781370,1.50964919,3056.3,3056.2,13.37579668]
[1642578781566,1.50964919,3056.3,3056.2,13.27131245]
[1642578781767,1.21454919,3056.3,3056.2,13.27131245]
[1642578781966,1.21454919,3056.3,3056.2,10.78667327]
[1642578782166,1.21454919,3056.3,3056.2,14.08921245]
[1642578782367,1.21454919,3056.3,3056.2,13.26149128]
[1642578782566,1.21454919,3056.3,3056.2,10.78667327]
[1642578783167,1.21454919,3056.3,3056.2,10.62341327]
[1642578783969,1.21454919,3056.3,3056.2,11.08667327]
[1642578784170,1.21454919,3056.3,3056.2,13.57131245]
[1642578784618,1.21454919,3056.3,3056.2,13.57423224]
[1642578784816,1.21454919,3056.3,3056.2,13.57426273]
[1642578785117,1.21454919,3056.3,3056.2,11.08667327]
[1642578785317,1.21454919,3056.3,3056.2,10.62341327]
[1642578785517,1.21454919,3056.3,3056.2,11.44136327]
[1642578786122,1.21454919,3056.3,3056.2,10.62341327]
[1642578786520,1.21454919,3056.3,3056.2,13.11090533]
[1642578786921,0.91344919,3056.3,3056.2,13.11090533]
[1642578787322,0.91344919,3056.3,3056.2,10.92341327]
[1642578787523,0.91344919,3056.3,3056.2,13.41331645]
[1642578787722,0.91344919,3056.3,3056.2,10.62341327]
[1642578787921,0.91344919,3056.3,3056.2,10.78667327]
[1642578788160,0.91344919,3056.3,3056.2,13.11330327]
[1642578788359,0.91344919,3056.3,3056.2,10.62341327]
[1642578788560,0.91344919,3056.3,3056.2,13.11453753]
[1642578789061,0.91344919,3056.3,3056.2,12.81453753]
[1642578789861,0.91344919,3056.3,3056.2,5.61453753]
[1642578790264,0.91344919,3056.3,3056.2,3.12341327]
[1642578790462,0.91344919,3056.3,3056.2,5.61451184]
[1642578790664,0.91344919,3056.3,3056.2,3.12341327]
[1642578791566,0.91344919,3056.3,3056.2,5.6143673]
[1642578792310,0.60184919,3056.3,3056.2,3.12341327]
[1642578797466,0.30474919,3056.3,3056.2,3.12341327]
[1642578801114,0.30474919,3056.3,3056.2,4.78398649]
[1642578801318,0.30474919,3056.3,3056.2,3.12341327]
[1642578802115,0.30474919,3056.3,3056.2,4.78398649]
[1642578802316,0.30474919,3056.3,3056.2,3.12341327]
[1642578802516,0.01344919,3056.3,3056.2,4.78398649]
[1642578802917,0.81811,3056.9,3056.2,4.78398649]
[1642578802918,0.73155919,3056.9,3056.3,6.0]
[1642578803159,0.73155919,3056.9,3056.4,3.12341327]
[1642578803360,0.00397896,3056.8,3056.6,0.34188686]
[1642578803561,6.54707896,3056.8,3056.6,0.34188686]
[1642578803760,6.5431,3056.8,3056.7,3.12341327]
[1642578804160,6.54707896,3056.8,3056.7,3.12341327]
[1642578807612,6.25167896,3056.8,3056.7,3.12341327]
[1642578808020,6.25167896,3056.8,3056.7,3.42341327]
[1642578808221,6.25167896,3056.8,3056.7,5.9143673]
[1642578808418,6.25167896,3056.8,3056.7,3.42341327]
[1642578808617,3.9275,3057.7,3056.9,0.34188686]
[1642578808817,3.9275,3057.7,3057.6,5.29188686]
[1642578809019,3.9275,3057.7,3057.6,9.89514416]
[1642578809217,11.5748929,3058.6,3057.6,9.89514416]
[1642578809420,6.5401,3058.4,3057.8,0.34188686]
[1642578809616,6.54919477,3058.4,3058.0,0.34188686]
[1642578809818,7.36686477,3058.4,3058.2,0.34188686]
[1642578810021,7.36686477,3058.4,3058.3,0.34188686]
[1642578810421,6.54919477,3058.4,3058.3,0.34188686]
[1642578811682,6.54919477,3058.4,3058.3,3.12237111]
[1642578811883,6.54919477,3058.4,3058.3,3.12240646]
[1642578812683,6.25569477,3058.4,3058.3,3.12240646]
[1642578816421,6.25569477,3058.4,3058.3,2.12240646]
[1642578816623,6.25569477,3058.4,3057.8,1.6349934]
[1642578817024,0.00852635,3058.3,3057.8,1.6349934]
[1642578817327,0.00795793,3058.2,3057.8,1.6349934]
[1642578817723,5.9629895,3058.4,3057.8,8.3349934]
[1642578817924,5.9629895,3058.4,3057.9,0.00113684]
[1642578818173,0.00113685,3058.3,3058.0,0.8175337]
[1642578818574,0.00113685,3058.3,3058.0,1.6349937]
[1642578818775,0.00113685,3058.3,3058.0,0.8175337]
[1642578818976,0.00113685,3058.3,3057.9,0.00113684]
[1642578820682,0.00113685,3058.3,3057.9,0.81863114]
[1642578822114,0.00113685,3058.3,3058.0,0.0537643]
[1642578822319,0.00113685,3058.3,3057.9,0.81863114]
[1642578822719,5.67272635,3058.4,3058.0,4.05]
[1642578822919,5.67272635,3058.4,3058.1,0.88427927]
[1642578823124,5.67272635,3058.4,3058.1,0.81861545]
[1642578823721,5.67272635,3058.4,3058.1,0.00113685]
[1642578824122,5.67272635,3058.4,3057.9,0.00227369]
[1642578824521,5.67272635,3058.4,3057.9,0.81976729]
[1642578824723,5.67272635,3058.4,3057.9,1.63723729]
[1642578824923,5.67272635,3058.4,3058.0,0.00170527]
[1642578825527,5.67272635,3058.4,3058.1,0.9806773]
[1642578825777,5.67272635,3058.4,3058.1,1.7980873]
[1642578825974,3.7318,3059.3,3058.9,1.23636972]
[1642578826173,3.7318,3059.3,3059.1,0.2686254]
[1642578826774,3.7468,3059.8,3059.1,0.2686254]
[1642578826976,3.7468,3059.8,3059.1,1.0857754]
[1642578827173,0.00738951,3059.6,3059.4,0.05341535]
[1642578827572,0.00682108,3059.5,3059.3,0.2686254]
[1642578827775,3.46212108,3059.8,3059.5,0.2686254]
[1642578827972,3.46212108,3059.8,3059.6,0.05079532]
[1642578828172,0.00113685,3059.7,3059.6,0.05079532]
[1642578828373,0.00113685,3059.7,3059.5,0.2686254]
[1642578828573,0.00454739,3060.3,3059.5,0.2686254]
[1642578828973,0.00397897,3060.2,3059.5,0.2686254]
[1642578829423,0.00341054,3060.1,3059.5,0.2686254]
[1642578829815,0.82006212,3060.0,3059.5,0.2686254]
[1642578830217,0.0022737,3059.9,3059.5,0.2686254]
[1642578830613,0.00170527,3059.8,3059.5,0.2686254]
[1642578831019,2.45525054,3060.1,3059.5,0.2686254]
[1642578831220,2.45525054,3060.1,3059.0,0.2686254]
[1642578831419,0.00284212,3060.0,3059.0,0.2686254]
[1642578831619,0.81728,3059.7,3059.1,0.00227369]
[1642578831822,2.25240683,3059.6,3059.1,0.00227369]
[1642578832023,3.25240683,3059.6,3059.1,0.00227369]
[1642578832222,1.63468,3059.7,3059.1,0.00227369]
[1642578832423,7.0092,3059.6,3059.1,0.00227369]
[1642578832620,6.5372,3059.6,3059.1,0.00227369]
[1642578832819,6.2461,3059.6,3059.1,0.00227369]
[1642578836172,6.2461,3059.6,3059.1,0.27089909]
[1642578836571,6.2461,3059.6,3059.2,0.00170527]
[1642578837026,6.2461,3059.6,3059.3,0.2686254]
[1642578837622,6.2461,3059.6,3059.5,6.56830979]
[1642578837824,5.9564,3059.6,3059.5,6.83693519]
[1642578838229,5.9564,3059.6,3059.5,7.60019519]
[1642578838524,5.9564,3059.6,3059.5,10.34332358]
[1642578838727,5.9564,3059.6,3059.5,7.60019519]
[1642578839024,5.9564,3059.6,3059.5,9.85401125]
[1642578839325,5.9564,3059.6,3059.5,6.83693519]
[1642578839525,5.9564,3059.6,3059.5,7.3818854]
[1642578839924,5.9564,3059.6,3059.5,8.86097573]
[1642578840225,5.9564,3059.6,3059.5,7.6318854]
[1642578840425,5.9564,3059.6,3059.5,8.7488713]
[1642578840666,5.9564,3059.6,3059.5,13.30046909]
[1642578841569,5.9564,3059.6,3059.5,14.30046909]
[1642578841971,5.9564,3059.6,3059.5,14.61313273]
[1642578842369,5.9564,3059.6,3059.5,14.60046909]
[1642578843074,5.6532,3059.6,3059.5,10.97797109]
[1642578843274,5.6532,3059.6,3059.5,9.97797109]
[1642578843486,5.6532,3059.6,3059.5,3.04772519]
[1642578843777,5.6532,3059.6,3059.5,0.2686254]
[1642578845917,5.6032,3059.6,3059.5,0.2686254]
[1642578848021,7.86343578,3059.6,3059.5,0.2686254]
[1642578848271,7.56563578,3059.6,3059.5,0.2686254]
[1642578848468,5.3054,3059.6,3059.5,0.2686254]
[1642578851474,8.29440204,3059.6,3059.5,0.2686254]
[1642578851922,6.12281,3059.6,3059.5,0.2686254]
[1642578852117,5.3054,3059.6,3059.5,0.2686254]
[1642578853318,5.0101,3059.6,3059.5,0.2686254]
[1642578853925,5.0101,3059.6,3059.5,3.04807148]
[1642578854120,5.0101,3059.6,3059.5,7.79807148]
[1642578854322,5.0101,3059.6,3059.5,8.09807148]
[1642578855128,0.00170527,3059.8,3059.7,0.2686254]
[1642578855325,0.00170527,3059.8,3059.7,10.24807148]
[1642578855525,0.00170527,3059.8,3059.7,11.84807148]
[1642578856172,0.00170527,3059.8,3059.7,12.01133148]
[1642578857972,0.00170527,3059.8,3059.7,10.54807148]
[1642578858270,4.59140527,3060.7,3059.8,3.7]
[1642578858471,0.81711,3060.4,3059.9,3.04807148]
[1642578858672,6.22559527,3060.7,3060.0,3.04807148]
[1642578858673,0.00454739,3060.6,3060.0,3.04807148]
[1642578858873,0.00454739,3060.6,3060.1,0.2686254]
[1642578859076,0.00397897,3060.5,3060.4,0.2686254]
[1642578859920,0.82103897,3060.5,3060.4,0.2686254]
[1642578860118,3.92103897,3060.5,3060.4,0.2686254]
[1642578860324,4.92103897,3060.5,3059.5,1.1558]
[1642578860522,0.01254994,3060.1,3059.6,2.77924545]
[1642578860722,0.01254994,3060.1,3059.6,0.00113684]
[1642578860723,0.472,3060.0,3059.6,0.00113684]
[1642578860923,2.10780685,3060.0,3059.6,0.00113684]
[1642578861124,2.10780685,3060.0,3059.0,2.78390634]
[1642578861324,3.4232409,3060.0,3059.1,2.78333792]
[1642578861522,3.4232409,3060.0,3059.2,2.77935896]
[1642578861725,3.38055364,3060.0,3059.2,2.7827695]
[1642578861923,3.38055364,3060.0,3059.3,2.78220107]
[1642578861924,0.81733,3059.8,3059.3,2.78220107]
[1642578862125,3.74649869,3059.7,3059.3,0.00284211]
[1642578862324,3.74649869,3059.7,3059.4,0.00227369]
[1642578862523,3.74649869,3059.7,3059.1,2.77964132]
[1642578862726,3.74649869,3059.7,3059.1,2.78362028]
[1642578862925,1.81748,3059.6,3059.2,0.00341054]
[1642578863165,0.81752,3059.4,3059.2,0.00341054]
[1642578863368,0.52773,3059.2,3058.8,2.7797323]
[1642578863565,2.10073185,3059.1,3058.8,2.78541653]
[1642578863764,2.10073185,3059.1,3058.2,2.8559286]
[1642578863765,2.10073185,3059.1,3058.9,2.78484811]
[1642578863966,0.52773,3059.2,3059.0,2.7797323]
[1642578864167,2.63352045,3059.2,3059.0,2.78427968]
[1642578864369,2.63352045,3059.2,3059.1,2.78371126]
[1642578864370,1.34522,3059.2,3059.1,2.78371126]
[1642578864568,7.06373,3059.2,3059.1,2.78371126]
[1642578865973,7.06373,3059.2,3059.1,0.00397896]
[1642578866172,9.26385365,3059.2,3059.1,0.00397896]
[1642578866372,9.26385365,3059.2,3058.3,0.00852635]
[1642578866673,7.06373,3059.2,3058.4,3.597256]
[1642578866928,7.06373,3059.2,3058.5,2.7798041]
[1642578867115,7.06373,3059.2,3058.6,2.7798041]
[1642578867314,9.21747677,3059.2,3058.6,2.7798041]
[1642578867514,9.21747677,3059.2,3058.7,2.78605675]
[1642578867716,9.21747677,3059.2,3058.8,2.7798041]
[1642578867915,9.21747677,3059.2,3058.8,2.78548833]
[1642578868117,10.03496677,3059.2,3058.9,2.78491991]
[1642578868416,9.73726677,3059.2,3059.0,2.78435148]
[1642578868617,6.01536126,3059.1,3059.0,0.00454738]
[1642578868816,7.48736126,3059.1,3057.9,2.87271244]
[1642578869016,2.45292,3058.9,3058.0,2.780066]
[1642578869417,2.11577339,3058.8,3058.1,0.0096632]
[1642578869619,2.11577339,3058.8,3058.2,2.780066]
[1642578869815,2.45292,3058.9,3058.2,2.780066]
[1642578869816,1.63528,3058.9,3058.2,2.780066]
[1642578870014,1.63528,3058.9,3058.0,0.01023162]
[1642578870015,7.35363,3058.7,3058.3,2.78859235]
[1642578870216,7.35363,3058.7,3058.4,2.780066]
[1642578870514,7.35363,3058.7,3058.5,0.0073895]
[1642578870770,6.536,3058.7,3058.6,2.780066]
[1642578871173,6.536,3058.7,3058.6,2.78688708]
[1642578873572,6.2438,3058.7,3058.6,2.78688708]
[1642578878668,5.9487,3058.7,3058.6,2.78688708]
[1642578880877,5.64,3058.7,3058.6,10.8307323]
[1642578881174,1.6376261,3059.4,3058.7,0.11159002]
[1642578881374,2.12283033,3060.0,3058.8,2.780066]
[1642578881572,2.12283033,3060.0,3058.9,0.87064646]
[1642578881773,0.00113685,3060.0,3059.0,2.780066]
[1642578882017,0.00113685,3060.0,3059.2,0.8171949]
[1642578882216,0.00113685,3060.0,3059.3,3.080066]
[1642578882415,0.00113685,3060.0,3059.4,2.780066]
[1642578882620,0.00113685,3060.0,3059.4,2.78233969]
[1642578882816,0.00113685,3060.0,3059.5,0.00170527]
[1642578883021,6.5365,3059.9,3059.5,0.00170527]
[1642578883821,6.2384,3059.9,3059.5,0.00170527]
[1642578884023,6.2384,3059.9,3059.5,0.81882247]
[1642578884222,6.2384,3059.9,3059.6,3.080066]
[1642578884423,6.2384,3059.9,3059.7,2.780066]
[1642578884823,6.2384,3059.9,3059.6,0.30113684]
[1642578884824,6.2384,3059.9,3059.6,0.00113684]
[1642578885228,6.2384,3059.9,3059.5,0.8171423]
[1642578885694,6.2384,3059.9,3059.6,2.78035288]
[1642578886289,6.2384,3059.9,3059.6,3.59746218]
[1642578886489,6.2384,3059.9,3059.7,2.77921604]
[1642578888292,6.2384,3059.9,3059.6,0.00113684]
[1642578888694,6.2384,3059.9,3059.5,2.78089586]
[1642578888892,5.9447,3059.9,3059.6,2.78032743]
[1642578889096,5.9447,3059.9,3059.6,0.00113684]
[1642578889516,5.9447,3059.9,3059.2,2.28277693]
[1642578889719,5.9447,3059.9,3059.3,0.00284211]
[1642578890121,1.88415744,3059.7,3059.3,0.00284211]
[1642578890327,2.09969791,3059.6,3059.3,0.00284211]
[1642578890526,0.472,3059.5,3059.3,0.00284211]
[1642578890721,0.472,3059.5,3058.1,2.78902882]
[1642578890722,9.77065092,3059.4,3058.7,0.00625265]
[1642578890921,9.77065092,3059.4,3058.3,0.00852635]
[1642578890922,0.472,3059.3,3058.3,0.00852635]
[1642578891121,2.12463508,3059.2,3058.2,0.00909477]
[1642578891522,2.2294536,3058.9,3058.2,0.00909477]
[1642578891725,2.90696589,3058.8,3058.2,0.00909477]
[1642578892224,0.8176,3058.8,3058.0,0.01023162]
[1642578892422,5.9447,3058.7,3058.0,0.01023162]
[1642578892826,0.8177,3058.6,3058.0,0.01023162]
[1642578893022,0.81775,3058.5,3058.0,0.01023162]
[1642578893271,6.76245,3058.5,3058.0,0.01023162]
[1642578893473,4.698,3058.4,3058.0,0.01023162]
[1642578894473,5.9447,3058.3,3058.0,0.01023162]
[1642578895778,0.81778,3058.2,3058.0,0.01023162]
[1642578895979,5.9447,3058.1,3057.6,0.01250531]
[1642578896379,5.9447,3058.1,3057.5,1.67660256]
[1642578896579,5.9447,3058.1,3057.6,0.01250531]
[1642578897222,5.9447,3058.1,3057.5,0.01307374]
[1642578898530,5.9447,3058.1,3057.4,0.01364216]
[1642578899330,2.10720961,3057.9,3057.3,0.01421058]
[1642578899535,2.0821068,3057.8,3057.3,0.01421058]
[1642578899735,2.8359068,3057.8,3057.3,0.01421058]
[1642578900132,2.8359068,3057.8,3057.2,0.01477901]
[1642578900331,2.8359068,3057.8,3056.9,1.66352882]
[1642578900332,2.8359068,3057.8,3057.1,0.01534743]
[1642578900534,2.8359068,3057.8,3057.0,0.01591585]
[1642578900776,3.6537968,3057.8,3057.0,0.01591585]
[1642578900976,4.4716868,3057.8,3057.0,0.01591585]
[1642578901375,4.4716868,3057.8,3056.9,1.6800131]
[1642578901581,2.38958,3057.8,3056.9,1.6800131]
[1642578901780,1.57169,3057.8,3057.0,1.67944467]
[1642578901978,0.7538,3057.8,3057.0,1.67944467]
[1642578902178,0.7538,3057.8,3057.1,1.67887625]
[1642578902381,0.7538,3057.8,3057.1,0.01534743]
[1642578902585,2.5,3057.7,3057.1,1.66352882]
[1642578902880,2.50284212,3057.7,3057.3,0.8177801]
[1642578903083,2.50284212,3057.7,3057.0,1.66352882]
[1642578903281,2.46794212,3057.7,3056.9,2.48133882]
[1642578903480,2.46794212,3057.7,3057.0,1.66352882]
[1642578903679,2.46794212,3057.7,3057.0,0.00113684]
[1642578904089,2.28601691,3057.6,3057.0,0.00113684]
[1642578904285,4.42885277,3057.6,3057.0,0.00113684]
[1642578904535,0.00170527,3057.5,3057.0,0.00113684]
[1642578904930,0.00113685,3057.4,3056.9,0.00170527]
[1642578905331,0.47370527,3057.5,3056.9,0.00170527]
[1642578905530,0.47370527,3057.5,3056.7,0.00284211]
[1642578905733,0.81913685,3057.4,3056.7,0.00284211]
[1642578905930,0.00113685,3057.4,3056.7,0.00284211]
[1642578906730,0.00113685,3057.4,3056.5,1.96352882]
[1642578906731,0.00113685,3057.4,3056.6,0.00341054]
[1642578907331,0.00113685,3057.4,3056.8,0.8179]
[1642578907530,0.00113685,3057.4,3056.8,1.1179]
[1642578907730,0.00113685,3057.4,3056.9,0.00170527]
[1642578908379,0.18093685,3057.5,3056.9,0.00170527]
[1642578908577,2.26190808,3057.5,3056.9,0.00284212]
[1642578909680,0.18093685,3057.5,3057.0,0.06263734]
[1642578909876,0.18093685,3057.5,3057.1,2.78108028]
[1642578910077,5.9447,3057.4,3057.1,2.78278555]
[1642578910280,5.9447,3057.4,3057.2,0.00113685]
[1642578910885,5.9447,3057.4,3056.8,0.00341054]
[1642578911284,5.9447,3057.4,3056.8,2.78449082]
[1642578911481,1.92051385,3057.2,3056.8,2.78449082]
[1642578911682,2.2179311,3057.1,3056.9,2.7839224]
[1642578911928,2.2179311,3057.1,3056.9,0.00284212]
[1642578912130,3.2179311,3057.1,3057.0,0.00227369]
[1642578912328,8.6346311,3057.1,3056.3,2.78146392]
[1642578912528,8.6346311,3057.1,3056.3,2.78771658]
[1642578912726,8.6346311,3057.1,3055.9,1.1251]
[1642578912727,8.6346311,3057.1,3056.4,2.78714815]
[1642578912928,0.81819,3057.0,3056.5,2.78146392]
[1642578913128,0.81818,3056.8,3056.5,2.78657973]
[1642578913433,1.75364702,3056.7,3056.6,2.78601131]
[1642578913831,7.80731938,3056.8,3056.6,2.78601131]
[1642578914031,7.80731938,3056.8,3056.7,2.78146392]
[1642578914332,15.35021938,3056.8,3056.7,2.78544288]
[1642578914533,15.81350938,3056.8,3056.7,0.00397896]
[1642578914933,0.81834,3056.4,3055.6,0.01023162]
[1642578915135,8.7169795,3056.3,3055.7,2.78181584]
[1642578915435,9.5353195,3056.3,3055.8,0.00909478]
[1642578915684,0.8183876,3056.2,3055.9,2.78181584]
[1642578915881,8.80950982,3056.1,3055.9,2.78181584]
[1642578916084,8.80950982,3056.1,3056.0,0.00795793]
[1642578916379,6.5429,3056.1,3056.0,2.78977377]